fUST/lending_fUST_20240621
["ID","MTS","AMOUNT","RATE_DAILY","PERIOD"]
[329991032,1718903432366,-152.79514038,0.00024693,2]
[329991033,1718903432376,-621.74757634,0.00024923,2]
[329991034,1718903432386,-225.45728328,0.00026445,2]
[329991035,1718903432397,-416.6733073,0.00026445,2]
[329991036,1718903432410,-279.44074599,0.00026445,2]
[329991037,1718903432423,-306.85283263,0.00026445,2]
[329991038,1718903432432,-288.34716737,0.00026574,2]
[329991039,1718903432444,-858.33531217,0.00026574,2]
[329991040,1718903432454,-2821.30919179,0.00026738,2]
[329991041,1718903432465,-466.0,0.00026738,2]
[329991042,1718903432477,-255.17519661,0.00026738,2]
[329991043,1718903432486,-169.569719,0.00027115,2]
[329991044,1718903432498,-157.426338,0.00029134,2]
[329991045,1718903432507,-121.59238989,0.00029292,2]
[329991094,1718903438321,-150.40761011,0.00029292,2]
[329991095,1718903438332,-933.80361757,0.00029293,2]
[329991096,1718903438344,-1469.2575685,0.00029293,2]
[329991097,1718903438548,-22496.93881393,0.00029293,2]
[329991099,1718903438558,-1749.69968823,0.00029368,2]
[329991101,1718903438568,-250.0,0.00029468,2]
[329991103,1718903438578,-500.0,0.0002993,2]
[329991104,1718903438588,-917.21613392,0.00030087,4]
[329991105,1718903438598,-1291.07564049,0.00030107,2]
[329991106,1718903438609,-526.25346792,0.00030165,4]
[329991107,1718903438620,-279.2532373,0.00030208,2]
[329991108,1718903438630,-162.864639,0.00032149,2]
[329991109,1718903438640,-1291.07564047,0.00036205,2]
[329991110,1718903438650,-166.87940235,0.00040335,30]
[329991111,1718903438661,-165.324914,0.00040411,2]
[329991112,1718903438671,-1291.07564047,0.00042304,2]
[329991113,1718903438681,-151.0,0.00043,14]
[329991114,1718903438691,-151.0,0.00044,14]
[329991115,1718903438701,-151.0,0.00044,14]
[329991116,1718903438711,-151.0,0.00044,14]
[329991117,1718903438721,-151.0,0.00044,120]
[329991118,1718903438731,-151.0,0.00044,14]
[329991119,1718903438741,-151.0,0.00044,14]
[329991120,1718903438753,-160.36620783,0.00044,2]
[329991121,1718903438763,-160.189814,0.00045,7]
[329991122,1718903438776,-151.0,0.00045,14]
[329991123,1718903438787,-151.0,0.00045,14]
[329991124,1718903438796,-151.0,0.00045,14]
[329991125,1718903438807,-151.0,0.00045,7]
[329991126,1718903438817,-151.0,0.00045,120]
[329991127,1718903438827,-151.0,0.00045,30]
[329991128,1718903438837,-151.0,0.00045,2]
[329991129,1718903438847,-151.0,0.00045,30]
[329991130,1718903438859,-151.0,0.00045,14]
[329991131,1718903438869,-153.0,0.00045814,2]
[329991132,1718903438879,-151.0,0.00046,30]
[329991133,1718903438889,-151.0,0.00047,120]
[329991134,1718903438899,-151.0,0.00047,90]
[329991135,1718903438909,-151.0,0.00048,30]
[329991136,1718903438919,-1291.07564047,0.00048402,2]
[329991137,1718903438930,-150.95,0.0004847,62]
[329991138,1718903438940,-157.426338,0.00048743,2]
[329991139,1718903438950,-151.0,0.00048904,90]
[329991140,1718903438959,-151.0,0.00049,120]
[329991141,1718903438969,-550.56351794,0.0005088,4]
[329991142,1718903438979,-150.0,0.00051,85]
[329991143,1718903438988,-3640.5024269,0.00051807,2]
[329991144,1718903438999,-500.0,0.00052146,120]
[329991145,1718903439008,-440.15650611,0.00052146,120]
[329991146,1718903439018,-481.35443847,0.00052146,120]
[329991147,1718903439027,-283.03671272,0.00052146,120]
[329991148,1718903439037,-3640.5024269,0.00052147,2]
[329991149,1718903439047,-2003.25,0.000525,120]
[329991150,1718903439057,-3640.50242692,0.00052776,2]
[329991151,1718903439068,-26688.0,0.000529,120]
[329991152,1718903439078,-1001.6316774,0.00052979,20]
[329991153,1718903439088,-542.46,0.0005299,120]
[329991154,1718903439098,-1000.02833333,0.00053,120]
[329991155,1718903439108,-262.22,0.0005307,30]
[329991156,1718903439119,-208.48799237,0.00053079,4]
[329991157,1718903439130,-4243.72,0.0005308,3]
[329991158,1718903439140,-4998.71,0.0005308,3]
[329991159,1718903439150,-4165.6,0.0005308,3]
[329991160,1718903439161,-5998.46,0.0005309,3]
[329991161,1718903439171,-317.64353351,0.00053099,4]
[329991162,1718903439181,-19514.83937882,0.000531,120]
[329991163,1718903439191,-486.66623218,0.000531,3]
[329991164,1718903439202,-5877.42109548,0.00053987,120]
[329991165,1718903439212,-1000.0,0.00054,54]
[329991166,1718903439222,-14595.57,0.0005448,120]
[329991167,1718903439232,-8866.0,0.000545,120]
[329991168,1718903439242,-30000.0,0.000545,30]
[329991169,1718903439360,-1291.07564047,0.000545,2]
[329991170,1718903439371,-27570.15815901,0.000546,30]
[329991171,1718903439381,-155.3788407,0.00054683,4]
[329991172,1718903439391,-166.87940236,0.00054684,60]
[329991173,1718903439401,-2000.0,0.00054694,2]
[329991174,1718903439411,-3510.27834066,0.00054694,5]
[329991175,1718903439421,-30000.0,0.000547,30]
[329991176,1718903439432,-150.5,0.00054765,62]
[329991177,1718903439443,-150.5,0.00054775,62]
[329991178,1718903439453,-150.5,0.00054785,62]
[329991179,1718903439464,-739.79678471,0.00054793,4]
[329991180,1718903439474,-3880.42419894,0.00054794,61]
[329991181,1718903439484,-106.5850845,0.00054794,120]
[329991182,1718903439499,-291.97428362,0.00054794,120]
[329991183,1718903439511,-101.44063188,0.00054794,120]
[329991184,1718903439521,-398.43936812,0.00054794,7]
[329991185,1718903439535,-101.56063188,0.00054794,7]
[329991186,1718903439545,-500.0,0.00054794,120]
[329991187,1718903439556,-500.0,0.00054794,120]
[329991188,1718903439567,-501.81869297,0.00054794,120]
[329991189,1718903439577,-501.51373819,0.00054794,7]
[329991190,1718903439588,-512.11720004,0.00054794,120]
[329991191,1718903439597,-503.39323866,0.00054794,120]
[329991192,1718903439608,-500.0,0.00054794,120]
[329991193,1718903439619,-500.0,0.00054794,120]
[329991194,1718903439631,-500.0,0.00054794,120]
[329991195,1718903439642,-500.0,0.00054794,120]
[329991196,1718903439653,-500.0,0.00054794,120]
[329991197,1718903439663,-501.86105742,0.00054794,120]
[329991198,1718903439673,-500.0,0.00054794,120]
[329991199,1718903439685,-501.29832658,0.00054794,120]
[329991200,1718903439695,-500.0,0.00054794,120]
[329991201,1718903439706,-190.75463863,0.00054794,120]
[329991202,1718903439716,-500.0,0.00054794,120]
[329991203,1718903439727,-500.0,0.00054794,120]
[329991204,1718903439737,-500.0,0.00054794,120]
[329991205,1718903439746,-500.0,0.00054794,120]
[329991206,1718903439761,-183.79379664,0.00054794,120]
[329991207,1718903439772,-500.0,0.00054794,120]
[329991208,1718903439782,-270.30439416,0.00054794,120]
[329991209,1718903439792,-511.11373766,0.00054794,120]
[329991210,1718903439803,-501.28488876,0.00054794,120]
[329991211,1718903439813,-543.17160151,0.00054794,120]
[329991212,1718903439823,-224.43746931,0.00054794,120]
[329991213,1718903439835,-500.0,0.00054794,120]
[329991214,1718903439847,-500.0,0.00054794,120]
[329991215,1718903439859,-397.72013659,0.00054794,120]
[329991216,1718903439870,-500.0,0.00054794,120]
[329991217,1718903439881,-500.0,0.00054794,120]
[329991218,1718903439891,-500.0,0.00054794,120]
[329991219,1718903439902,-500.0,0.00054794,120]
[329991220,1718903439912,-500.0,0.00054794,120]
[329991221,1718903439921,-500.0,0.00054794,120]
[329991222,1718903439931,-250.0,0.00054794,120]
[329991223,1718903439942,-504.37643809,0.00054794,120]
[329991224,1718903439953,-509.30501904,0.00054794,120]
[329991225,1718903439964,-500.0,0.00054794,120]
[329991226,1718903439974,-500.0,0.00054794,120]
[329991227,1718903439983,-500.0,0.00054794,120]
[329991228,1718903439993,-532.66960155,0.00054794,120]
[329991229,1718903440006,-502.11658079,0.00054794,120]
[329991230,1718903440017,-504.99873473,0.00054794,120]
[329991231,1718903440026,-505.21161363,0.00054794,120]
[329991232,1718903440039,-525.6664527,0.00054794,120]
[329991233,1718903440049,-570.0,0.00054794,120]
[329991235,1718903440060,-500.0,0.00054794,120]
[329991237,1718903440071,-502.25131364,0.00054794,120]
[329991239,1718903440081,-514.81833942,0.00054794,120]
[329991241,1718903440090,-500.0,0.00054794,120]
[329991242,1718903440100,-500.0,0.00054794,120]
[329991243,1718903440109,-500.0,0.00054794,120]
[329991244,1718903440119,-501.9266854,0.00054794,120]
[329991245,1718903440129,-505.530291,0.00054794,120]
[329991246,1718903440139,-501.60760197,0.00054794,120]
[329991247,1718903440148,-500.0,0.00054794,120]
[329991248,1718903440158,-508.93042201,0.00054794,120]
[329991249,1718903440168,-491.52231377,0.00054794,120]
[329991250,1718903440178,-508.91475352,0.00054794,120]
[329991251,1718903440189,-622.34137942,0.00054794,30]
[329991252,1718903440199,-398.40387868,0.00054794,120]
[329991254,1718903440209,-501.52898155,0.00054794,120]
[329991255,1718903440219,-500.0,0.00054794,120]
[329991256,1718903440230,-507.04546922,0.00054794,120]
[329991257,1718903440240,-500.50416299,0.00054794,120]
[329991258,1718903440251,-502.23422615,0.00054794,120]
[329991259,1718903440260,-503.23487463,0.00054794,120]
[329991260,1718903440270,-500.0,0.00054794,120]
[329991261,1718903440281,-508.38639762,0.00054794,120]
[329991262,1718903440291,-500.0,0.00054794,120]
[329991263,1718903440301,-502.24248115,0.00054794,120]
[329991264,1718903440311,-500.0,0.00054794,120]
[329991265,1718903440321,-500.0,0.00054794,120]
[329991266,1718903440331,-500.0,0.00054794,120]
[329991267,1718903440340,-500.0,0.00054794,120]
[329991268,1718903440350,-686.27,0.00054794,120]
[329991269,1718903440360,-502.55385345,0.00054794,120]
[329991270,1718903440370,-502.90286429,0.00054794,120]
[329991271,1718903440379,-500.0,0.00054794,120]
[329991272,1718903440388,-500.0,0.00054794,120]
[329991273,1718903440398,-500.0,0.00054794,120]
[329991275,1718903440408,-649.96248451,0.00054794,120]
[329991277,1718903440418,-500.0,0.00054794,2]
[329991278,1718903440428,-500.0,0.00054794,2]
[329991279,1718903440438,-500.0,0.00054794,120]
[329991280,1718903440448,-500.0,0.00054794,120]
[329991281,1718903440458,-500.0,0.00054794,120]
[329991282,1718903440468,-500.0,0.00054794,120]
[329991283,1718903440478,-500.0,0.00054794,120]
[329991284,1718903440488,-506.88308617,0.00054794,120]
[329991285,1718903440501,-500.0,0.00054794,120]
[329991286,1718903440512,-508.30808108,0.00054794,120]
[329991287,1718903440522,-500.0,0.00054794,120]
[329991288,1718903440531,-774.5,0.00054794,120]
[329991289,1718903440541,-500.0,0.00054794,120]
[329991290,1718903440551,-500.0,0.00054794,120]
[329991291,1718903440560,-500.0,0.00054794,120]
[329991292,1718903440570,-500.0,0.00054794,120]
[329991293,1718903440581,-500.0,0.00054794,120]
[329991294,1718903440591,-501.82453148,0.00054794,120]
[329991295,1718903440600,-158.742791,0.00054794,14]
[329991296,1718903440611,-500.0,0.00054794,120]
[329991297,1718903440621,-500.0,0.00054794,120]
[329991298,1718903440630,-500.0,0.00054794,120]
[329991299,1718903440640,-158.742791,0.00054794,14]
[329991300,1718903440649,-387.46620817,0.00054794,120]
[329991301,1718903440659,-500.0,0.00054794,120]
[329991302,1718903440670,-151.0,0.00054794,14]
[329991303,1718903440680,-520.4917152,0.00054794,120]
[329991304,1718903440691,-528.15348236,0.00054794,120]
[329991305,1718903440700,-500.0,0.00054794,120]
[329991306,1718903440710,-500.0,0.00054794,120]
[329991307,1718903440720,-500.0,0.00054794,120]
[329991308,1718903440730,-151.0,0.00054794,14]
[329991309,1718903440740,-1000.0,0.00054794,120]
[329991310,1718903440752,-1000.0,0.00054794,120]
[329991311,1718903440762,-500.0,0.00054794,120]
[329991312,1718903440775,-254.462815,0.00054794,14]
[329991313,1718903440784,-500.0,0.00054794,120]
[329991314,1718903440793,-500.0,0.00054794,120]
[329991315,1718903440802,-254.462815,0.00054794,14]
[329991316,1718903440812,-500.0,0.00054794,120]
[329991317,1718903440822,-500.0,0.00054794,120]
[329991318,1718903440832,-500.0,0.00054794,120]
[329991319,1718903440843,-500.0,0.00054794,120]
[329991320,1718903440853,-500.0,0.00054794,120]
[329991321,1718903440863,-500.0,0.00054794,120]
[329991322,1718903440874,-500.0,0.00054794,120]
[329991323,1718903440883,-500.0,0.00054794,120]
[329991324,1718903440893,-500.0,0.00054794,120]
[329991325,1718903440902,-500.0,0.00054794,120]
[329991326,1718903440911,-500.0,0.00054794,120]
[329991327,1718903440921,-500.0,0.00054794,120]
[329991328,1718903440931,-500.0,0.00054794,120]
[329991329,1718903440941,-500.0,0.00054794,120]
[329991330,1718903440953,-500.0,0.00054794,120]
[329991331,1718903440962,-500.0,0.00054794,120]
[329991332,1718903440972,-500.0,0.00054794,120]
[329991333,1718903440982,-500.0,0.00054794,120]
[329991334,1718903440991,-500.0,0.00054794,120]
[329991335,1718903441002,-500.0,0.00054794,120]
[329991336,1718903441011,-500.0,0.00054794,120]
[329991337,1718903441020,-500.0,0.00054794,120]
[329991338,1718903441029,-500.0,0.00054794,120]
[329991339,1718903441038,-500.0,0.00054794,120]
[329991340,1718903441048,-500.0,0.00054794,120]
[329991341,1718903441058,-500.0,0.00054794,120]
[329991342,1718903441068,-500.0,0.00054794,120]
[329991343,1718903441078,-500.0,0.00054794,120]
[329991344,1718903441087,-500.0,0.00054794,120]
[329991345,1718903441098,-200.0,0.00054794,7]
[329991346,1718903441108,-1494.48,0.00054794,120]
[329991347,1718903441117,-500.0,0.00054794,120]
[329991348,1718903441127,-500.0,0.00054794,120]
[329991349,1718903441137,-500.0,0.00054794,120]
[329991350,1718903441146,-500.0,0.00054794,120]
[329991351,1718903441156,-500.0,0.00054794,120]
[329991352,1718903441166,-500.0,0.00054794,120]
[329991353,1718903441176,-2227.27,0.00054794,120]
[329991354,1718903441186,-500.0,0.00054794,120]
[329991355,1718903441195,-500.0,0.00054794,120]
[329991356,1718903441204,-500.0,0.00054794,120]
[329991357,1718903441214,-500.0,0.00054794,120]
[329991358,1718903441223,-500.0,0.00054794,120]
[329991359,1718903441232,-500.0,0.00054794,120]
[329991360,1718903441242,-500.0,0.00054794,20]
[329991361,1718903441252,-500.0,0.00054794,120]
[329991362,1718903441261,-500.0,0.00054794,120]
[329991363,1718903441270,-151.0,0.00054794,14]
[329991364,1718903441279,-500.0,0.00054794,120]
[329991365,1718903441288,-500.0,0.00054794,120]
[329991366,1718903441297,-151.0,0.00054794,14]
[329991367,1718903441307,-500.0,0.00054794,120]
[329991368,1718903441316,-528.71160799,0.00054794,120]
[329991369,1718903441326,-602.95,0.00054794,2]
[329991370,1718903441336,-500.0,0.00054794,120]
[329991371,1718903441345,-506.40927252,0.00054794,120]
[329991372,1718903441355,-500.0,0.00054794,120]
[329991373,1718903441364,-615.0147293,0.00054794,120]
[329991374,1718903441374,-241.50318,0.00054794,14]
[329991375,1718903441383,-241.50318,0.00054794,14]
[329991376,1718903441393,-500.0,0.00054794,120]
[329991377,1718903441402,-500.0,0.00054794,120]
[329991378,1718903441412,-500.0,0.00054794,120]
[329991379,1718903441421,-158.668173,0.00054794,14]
[329991380,1718903441431,-158.668173,0.00054794,14]
[329991381,1718903441441,-502.60970296,0.00054794,120]
[329991382,1718903441450,-509.42607985,0.00054794,120]
[329991383,1718903441460,-655.172565,0.00054794,14]
[329991384,1718903441469,-500.0,0.00054794,120]
[329991385,1718903441479,-500.0,0.00054794,120]
[329991386,1718903441489,-515.10372838,0.00054794,120]
[329991387,1718903441500,-500.0,0.00054794,120]
[329991388,1718903441588,-500.0,0.00054794,120]
[329991389,1718903441598,-502.42472393,0.00054794,120]
[329991390,1718903441608,-151.0,0.00054794,14]
[329991391,1718903441617,-339.79832333,0.00054794,120]
[329991392,1718903441626,-500.0,0.00054794,120]
[329991393,1718903441636,-500.0,0.00054794,120]
[329991394,1718903441646,-452.32130888,0.00054794,120]
[329991395,1718903441655,-394.18557084,0.00054794,120]
[329991396,1718903441664,-151.0,0.00054794,14]
[329991397,1718903441674,-500.0,0.00054794,120]
[329991398,1718903441683,-152.348545,0.00054794,14]
[329991399,1718903441692,-500.0,0.00054794,120]
[329991400,1718903441701,-500.0,0.00054794,120]
[329991401,1718903441710,-151.0,0.00054794,14]
[329991402,1718903441719,-500.80688013,0.00054794,120]
[329991403,1718903441728,-500.0,0.00054794,120]
[329991404,1718903441739,-500.0,0.00054794,120]
[329991405,1718903441749,-500.0,0.00054794,120]
[329991406,1718903441765,-501.55816408,0.00054794,120]
[329991407,1718903441774,-502.41089697,0.00054794,120]
[329991408,1718903441783,-500.0,0.00054794,120]
[329991409,1718903441793,-500.0,0.00054794,120]
[329991410,1718903441804,-3508.52,0.00054794,60]
[329991411,1718903441813,-500.0,0.00054794,120]
[329991412,1718903441823,-500.0,0.00054794,120]
[329991413,1718903441832,-200.79,0.00054794,120]
[329991414,1718903441842,-500.0,0.00054794,120]
[329991415,1718903441851,-500.0,0.00054794,120]
[329991416,1718903441860,-500.0,0.00054794,120]
[329991417,1718903441869,-500.0,0.00054794,120]
[329991418,1718903441879,-151.568617,0.00054794,14]
[329991419,1718903441888,-151.0,0.00054794,14]
[329991420,1718903441897,-500.0,0.00054794,120]
[329991421,1718903441906,-500.0,0.00054794,2]
[329991422,1718903441916,-500.0,0.00054794,120]
[329991423,1718903441926,-500.0,0.00054794,120]
[329991424,1718903441935,-500.0,0.00054794,120]
[329991425,1718903441945,-500.0,0.00054794,120]
[329991426,1718903441955,-500.0,0.00054794,120]
[329991427,1718903441964,-500.0,0.00054794,120]
[329991428,1718903441973,-504.12645499,0.00054794,120]
[329991429,1718903441983,-500.0,0.00054794,120]
[329991430,1718903441992,-4777.498813,0.00054794,14]
[329991431,1718903442003,-500.0,0.00054794,120]
[329991432,1718903442013,-503.8324288,0.00054794,120]
[329991433,1718903442023,-500.0,0.00054794,120]
[329991434,1718903442032,-4777.498813,0.00054794,14]
[329991435,1718903442042,-151.0,0.00054794,14]
[329991436,1718903442051,-538.82842922,0.00054794,120]
[329991437,1718903442060,-500.0,0.00054794,120]
[329991438,1718903442069,-531.68564142,0.00054794,120]
[329991439,1718903442078,-500.0,0.00054794,120]
[329991440,1718903442087,-500.0,0.00054794,120]
[329991441,1718903442096,-548.56284932,0.00054794,120]
[329991442,1718903442105,-500.0,0.00054794,120]
[329991443,1718903442115,-543.13,0.00054794,120]
[329991444,1718903442125,-500.0,0.00054794,120]
[329991445,1718903442135,-500.0,0.00054794,120]
[329991446,1718903442144,-168.54679431,0.00054794,120]
[329991447,1718903442155,-500.0,0.00054794,120]
[329991448,1718903442165,-167.96240653,0.00054794,120]
[329991449,1718903442174,-500.0,0.00054794,120]
[329991450,1718903442184,-501.75361061,0.00054794,120]
[329991451,1718903442194,-500.0,0.00054794,120]
[329991452,1718903442203,-502.96937943,0.00054794,120]
[329991453,1718903442212,-1311.44,0.00054794,120]
[329991454,1718903442223,-500.0,0.00054794,120]
[329991455,1718903442232,-500.0,0.00054794,120]
[329991456,1718903442241,-236.91671621,0.00054794,120]
[329991457,1718903442251,-500.0,0.00054794,120]
[329991458,1718903442261,-500.0,0.00054794,120]
[329991459,1718903442270,-500.0,0.00054794,120]
[329991460,1718903442279,-500.0,0.00054794,120]
[329991461,1718903442289,-500.0,0.00054794,120]
[329991462,1718903442299,-500.0,0.00054794,120]
[329991463,1718903442308,-500.0,0.00054794,120]
[329991464,1718903442317,-500.0,0.00054794,120]
[329991465,1718903442328,-500.0,0.00054794,120]
[329991466,1718903442337,-521.59494068,0.00054794,120]
[329991467,1718903442346,-500.0,0.00054794,120]
[329991468,1718903442355,-500.0,0.00054794,120]
[329991469,1718903442364,-151.0,0.00054794,14]
[329991470,1718903442373,-151.0,0.00054794,14]
[329991471,1718903442382,-500.0,0.00054794,120]
[329991472,1718903442391,-534.29561651,0.00054794,120]
[329991473,1718903442399,-500.0,0.00054794,120]
[329991474,1718903442409,-500.0,0.00054794,120]
[329991475,1718903442418,-1000.0,0.00054794,10]
[329991476,1718903442427,-1000.0,0.00054794,10]
[329991477,1718903442436,-1000.0,0.00054794,10]
[329991478,1718903442446,-1000.0,0.00054794,10]
[329991479,1718903442455,-1000.0,0.00054794,10]
[329991480,1718903442465,-1000.0,0.00054794,10]
[329991481,1718903442474,-1000.0,0.00054794,10]
[329991482,1718903442484,-500.0,0.00054794,120]
[329991483,1718903442493,-1000.0,0.00054794,10]
[329991484,1718903442503,-500.0,0.00054794,120]
[329991485,1718903442512,-1340.079762,0.00054794,14]
[329991486,1718903442521,-1000.0,0.00054794,10]
[329991487,1718903442530,-500.0,0.00054794,120]
[329991488,1718903442539,-500.0,0.00054794,120]
[329991489,1718903442548,-1000.0,0.00054794,10]
[329991490,1718903442558,-1000.0,0.00054794,10]
[329991491,1718903442568,-1000.0,0.00054794,10]
[329991492,1718903442577,-1000.0,0.00054794,10]
[329991493,1718903442587,-1000.0,0.00054794,10]
[329991494,1718903442597,-1000.0,0.00054794,10]
[329991495,1718903442606,-500.150993,0.00054794,10]
[329991496,1718903442616,-500.0,0.00054794,120]
[329991497,1718903442625,-500.0,0.00054794,120]
[329991498,1718903442634,-502.42198833,0.00054794,120]
[329991499,1718903442643,-500.0,0.00054794,120]
[329991500,1718903442652,-1340.079762,0.00054794,14]
[329991501,1718903442661,-500.0,0.00054794,120]
[329991502,1718903442670,-500.0,0.00054794,120]
[329991503,1718903442679,-503.08456191,0.00054794,120]
[329991504,1718903442688,-2252.55,0.00054794,120]
[329991505,1718903442698,-500.0,0.00054794,120]
[329991506,1718903442707,-504.73900056,0.00054794,120]
[329991507,1718903442717,-17111.72,0.00054794,120]
[329991508,1718903442726,-483.0485805,0.00054794,120]
[329991509,1718903442735,-151.0,0.00054794,14]
[329991510,1718903442745,-500.0,0.00054794,120]
[329991511,1718903442756,-500.0,0.00054794,120]
[329991512,1718903442765,-500.0,0.00054794,120]
[329991513,1718903442778,-4250.158192,0.00054794,14]
[329991514,1718903442787,-4250.158192,0.00054794,14]
[329991515,1718903442796,-500.0,0.00054794,120]
[329991516,1718903442806,-500.0,0.00054794,120]
[329991517,1718903442815,-500.0,0.00054794,120]
[329991518,1718903442824,-392.40600233,0.00054794,120]
[329991519,1718903442834,-4250.158192,0.00054794,14]
[329991520,1718903442844,-4250.158192,0.00054794,14]
[329991524,1718903442854,-1541.51,0.00054794,120]
[329991526,1718903442864,-1271.0,0.00054794,21]
[329991528,1718903442873,-501.4223404,0.00054794,120]
[329991532,1718903442883,-493.31327871,0.00054794,120]
[329991534,1718903442892,-500.0,0.00054794,120]
[329991536,1718903442902,-500.0,0.00054794,120]
[329991538,1718903442911,-500.0,0.00054794,120]
[329991540,1718903442921,-500.0,0.00054794,120]
[329991541,1718903442930,-500.0,0.00054794,120]
[329991542,1718903442939,-500.0,0.00054794,120]
[329991543,1718903442949,-513.99284798,0.00054794,120]
[329991544,1718903442959,-2471.46,0.00054794,120]
[329991545,1718903442968,-500.0,0.00054794,120]
[329991546,1718903442978,-501.50568853,0.00054794,120]
[329991547,1718903442987,-500.0,0.00054794,120]
[329991548,1718903442996,-500.0,0.00054794,120]
[329991549,1718903443009,-500.0,0.00054794,120]
[329991550,1718903443019,-500.0,0.00054794,120]
[329991551,1718903443028,-500.0,0.00054794,120]
[329991553,1718903443041,-500.0,0.00054794,120]
[329991555,1718903443050,-500.0,0.00054794,120]
[329991558,1718903443059,-500.0,0.00054794,120]
[329991560,1718903443069,-500.0,0.00054794,120]
[329991563,1718903443078,-151.0,0.00054794,14]
[329991565,1718903443088,-151.0,0.00054794,14]
[329991567,1718903443097,-367.826001,0.00054794,14]
[329991569,1718903443106,-367.826001,0.00054794,14]
[329991571,1718903443115,-593.66,0.00054794,120]
[329991573,1718903443125,-500.0,0.00054794,120]
[329991575,1718903443134,-2183.6,0.00054794,120]
[329991577,1718903443143,-500.0,0.00054794,120]
[329991578,1718903443153,-500.0,0.00054794,120]
[329991579,1718903443162,-151.0,0.00054794,14]
[329991580,1718903443171,-151.0,0.00054794,14]
[329991581,1718903443180,-367.826001,0.00054794,14]
[329991582,1718903443190,-367.826001,0.00054794,14]
[329991583,1718903443200,-500.0,0.00054794,120]
[329991585,1718903443209,-500.0,0.00054794,90]
[329991586,1718903443218,-500.0,0.00054794,120]
[329991588,1718903443227,-538.13452789,0.00054794,120]
[329991590,1718903443236,-500.0,0.00054794,120]
[329991591,1718903443246,-500.0,0.00054794,120]
[329991592,1718903443259,-502.05476015,0.00054794,120]
[329991593,1718903443269,-507.82319642,0.00054794,120]
[329991594,1718903443278,-500.0,0.00054794,120]
[329991595,1718903443287,-501.51090296,0.00054794,120]
[329991596,1718903443296,-500.0,0.00054794,120]
[329991597,1718903443305,-507.83332134,0.00054794,120]
[329991598,1718903443314,-500.0,0.00054794,120]
[329991599,1718903443323,-500.0,0.00054794,120]
[329991600,1718903443333,-500.0,0.00054794,120]
[329991601,1718903443342,-500.0,0.00054794,120]
[329991602,1718903443352,-564.07655874,0.00054794,120]
[329991603,1718903443361,-500.0,0.00054794,120]
[329991604,1718903443370,-500.0,0.00054794,120]
[329991605,1718903443379,-500.0,0.00054794,120]
[329991606,1718903443388,-500.0,0.00054794,120]
[329991607,1718903443397,-500.0,0.00054794,120]
[329991609,1718903443406,-500.0,0.00054794,120]
[329991610,1718903443415,-500.0,0.00054794,120]
[329991611,1718903443425,-1888.23,0.00054794,120]
[329991612,1718903443434,-500.0,0.00054794,120]
[329991613,1718903443445,-500.0,0.00054794,120]
[329991614,1718903443531,-500.0,0.00054794,120]
[329991615,1718903443541,-500.0,0.00054794,120]
[329991616,1718903443550,-500.0,0.00054794,120]
[329991617,1718903443560,-500.0,0.00054794,120]
[329991618,1718903443569,-500.0,0.00054794,120]
[329991619,1718903443579,-500.0,0.00054794,120]